[Event "Nova Scotia Closed "]
[Site "Halifax CAN"]
[Date "2019.07.06"]
[Round "3.2"]
[White "Langen, Roger"]
[Black "Felix, Chris"]
[Result "1-0"]
[ECO "B21"]
[WhiteElo "2125"]
[BlackElo "2031"]
[PlyCount "79"]
[EventDate "2019.07.05"]
[EventType "tourn"]
[EventRounds "5"]
[EventCountry "CAN"]
[TimeControl "30/90+45:0"]

1. e4 {[%emt 0:00:00]} c5 {[%emt 0:00:08]} 2. Be2 {[%emt 0:00:25]} d6 {
[%emt 0:00:00]} 3. f4 {[%emt 0:00:22]} Nc6 {[%emt 0:06:38]} 4. Nf3 {
[%emt 0:00:17]} g6 {[%emt 0:00:54]} 5. O-O {[%emt 0:01:10]} Bg7 {[%emt 0:01:20]
} 6. c3 {[%emt 0:00:00]} e6 {[%emt 0:06:34]} 7. Qe1 {[%emt 0:03:37]} Nge7 {
[%emt 0:04:26]} 8. d3 {[%emt 0:04:54]} b5 {[%emt 0:03:58]} 9. Be3 {
[%emt 0:24:45]} b4 {[%emt 0:00:00]} 10. d4 {[%emt 0:01:49]} bxc3 {
[%emt 0:05:57]} 11. bxc3 {[%emt 0:00:09]} cxd4 {[%emt 0:04:39]} 12. cxd4 {
[%emt 0:01:19]} Qb6 {[%emt 0:04:20]} 13. Qd2 {[%emt 0:01:54]} Ba6 {
[%emt 0:08:57]} 14. d5 {[%emt 1:20:12]} Qb4 {[%emt 0:00:00]} 15. Bxa6 {
[%emt 0:00:00]} Bxa1 {[%emt 0:00:00]} 16. dxc6 {[%emt 0:00:00]} Nxc6 {
[%emt 0:00:00]} 17. Qc2 {[%emt 0:00:00]} Nd4 {[%emt 0:00:00]} 18. Nxd4 {
[%emt 0:00:00]} Bxd4 {[%emt 0:00:00]} 19. Qc6+ {[%emt 0:00:00]} Ke7 {
[%emt 0:00:00]} 20. Qc7+ {[%emt 0:00:00]} Kf6 {[%emt 0:00:00]} 21. Bxd4+ {
[%emt 0:00:00]} Qxd4+ {[%emt 0:00:00]} 22. Kh1 {[%emt 0:00:00]} Rhf8 {
[%emt 0:00:00]} 23. Nc3 {[%emt 0:00:00]} Rab8 {[%emt 0:00:00]} 24. Rd1 {
[%emt 0:00:00]} Qc5 {[%emt 0:00:00]} 25. e5+ {[%emt 0:00:00]} Kg7 {
[%emt 0:02:28]} 26. exd6 {[%emt 0:00:00]} Qf2 {[%emt 0:01:13]} 27. d7 {
[%emt 0:00:00]} Rb2 {[%emt 0:03:02]} 28. Bf1 {[%emt 0:00:00]} Rd2 {
[%emt 0:00:34]} 29. Rb1 {[%emt 0:00:28]} Qd4 {[%emt 0:06:52]} 30. Bb5 {
[%emt 0:03:34]} Rc2 {[%emt 0:05:27]} 31. Ne2 {[%emt 0:02:27]} Qe4 {
[%emt 0:06:08]} 32. Qe5+ {[%emt 0:07:04]} Qxe5 {[%emt 0:01:05]} 33. fxe5 {
[%emt 0:00:00]} Rd2 {[%emt 0:00:47]} 34. Nc3 {[%emt 0:05:28]} Rc2 {
[%emt 0:05:26]} 35. Ne4 {[%emt 0:02:43]} a6 {[%emt 0:03:20]} 36. Bxa6 {
[%emt 0:01:27]} Rxa2 {[%emt 0:00:00]} 37. Bc8 {[%emt 0:15:54]} Re2 {
[%emt 0:00:00]} 38. Nd6 Kg8 {[%emt 0:00:00]} 39. Rd1 {[%emt 0:00:00]} Rc2 {
[%emt 0:00:00]} 40. Ne8 {[%emt 0:00:00]} 1-0

[Event "Nova Scotia Closed "]
[Site "Halifax CAN"]
[Date "2019.07.06"]
[Round "3.3"]
[White "Mayo, Alvah"]
[Black "Charlton, Glenn"]
[Result "1-0"]
[ECO "B23"]
[WhiteElo "2163"]
[BlackElo "2052"]
[PlyCount "51"]
[EventDate "2019.07.05"]
[EventType "tourn"]
[EventRounds "5"]
[EventCountry "CAN"]
[TimeControl "30/90+45:0"]

1. e4 {[%emt 0:02:28]} c5 {[%emt 0:00:12]} 2. Nc3 {[%emt 0:01:13]} g6 {
[%emt 0:00:00]} 3. f4 {[%emt 0:00:32]} Bg7 {[%emt 0:00:11]} 4. Nf3 {
[%emt 0:00:06]} Nc6 {[%emt 0:00:22]} 5. Bb5 {[%emt 0:00:43]} Nd4 {
[%emt 0:00:00]} 6. Bd3 {[%emt 0:00:00]} d6 {[%emt 0:00:35]} 7. Nxd4 {
[%emt 0:00:11]} cxd4 {[%emt 0:00:10]} 8. Ne2 {[%emt 0:00:05]} Nf6 {
[%emt 0:01:09]} 9. c3 {[%emt 0:00:35]} dxc3 {[%emt 0:00:00]} 10. dxc3 {
[%emt 0:00:38]} O-O {[%emt 0:05:10]} 11. O-O {[%emt 0:02:27]} b6 {
[%emt 0:08:28]} 12. Ng3 {[%emt 0:06:36]} Bb7 {[%emt 0:00:50]} 13. Qe2 {
[%emt 0:00:58]} Nd7 {[%emt 0:08:20]} 14. Rd1 {[%emt 0:18:47]} Qc7 {
[%emt 0:00:00]} 15. Be3 {[%emt 0:00:00]} Nc5 {[%emt 0:00:00]} 16. Bc2 {
[%emt 0:00:00]} Rad8 {[%emt 0:00:00]} 17. Rac1 {[%emt 0:01:58]} e5 {
[%emt 0:01:46]} 18. f5 {[%emt 0:01:32]} d5 {[%emt 0:02:53]} 19. Qf2 {
[%emt 0:15:30]} Nxe4 {[%emt 1:25:00]} 20. Nxe4 {[%emt 0:00:00]} dxe4 {
[%emt 0:00:00]} 21. f6 {[%emt 0:00:00]} Bh8 {[%emt 0:00:00]} 22. g4 {
[%emt 0:00:00]} g5 {[%emt 0:00:00]} 23. Bxg5 {[%emt 0:00:00]} e3 {
[%emt 0:00:00]} 24. Qf5 {[%emt 0:00:00]} e4 {[%emt 0:02:50]} 25. Bxe3 {
[%emt 0:00:00]} Rfe8 {[%emt 0:01:32]} 26. Bh6 {[%emt 0:06:38]} 1-0

[Event "Nova Scotia Closed "]
[Site "Halifax CAN"]
[Date "2019.07.07"]
[Round "4.1"]
[White "Charlton, Glenn"]
[Black "Gonzalez-Cueto, Jose"]
[Result "0-1"]
[ECO "E61"]
[WhiteElo "2052"]
[BlackElo "2085"]
[PlyCount "82"]
[EventDate "2019.07.05"]
[EventType "tourn"]
[EventRounds "5"]
[EventCountry "CAN"]
[TimeControl "30/90+45:0"]

1. d4 {[%emt 1:22:51]} Nf6 {[%emt 0:03:24]} 2. Bf4 {[%emt 0:00:13]} g6 {
[%emt 0:02:14]} 3. e3 {[%emt 0:00:09]} Bg7 {[%emt 0:00:25]} 4. Nf3 {
[%emt 0:00:16]} b6 {[%emt 0:01:18]} 5. Be2 {[%emt 0:00:31]} Bb7 {[%emt 0:00:17]
} 6. O-O {[%emt 0:00:24]} O-O {[%emt 0:00:10]} 7. h3 {[%emt 0:00:33]} d6 {
[%emt 0:00:42]} 8. c4 {[%emt 0:00:28]} Nbd7 {[%emt 0:01:12]} 9. Nc3 {
[%emt 0:00:18]} Re8 {[%emt 0:00:00]} 10. Qc2 {[%emt 0:03:15]} e5 {
[%emt 0:00:50]} 11. Bh2 {[%emt 0:00:08]} e4 {[%emt 0:07:50]} 12. Nd2 {
[%emt 0:00:20]} Qe7 {[%emt 0:00:34]} 13. b4 {[%emt 0:00:00]} c6 {[%emt 0:09:15]
} 14. c5 {[%emt 0:21:52]} dxc5 {[%emt 0:08:37]} 15. bxc5 {[%emt 0:00:18]} bxc5
{[%emt 0:00:34]} 16. Rab1 {[%emt 0:00:23]} Bc8 {[%emt 0:01:38]} 17. Nb3 {
[%emt 0:18:39]} cxd4 {[%emt 0:11:18]} 18. Nxd4 {[%emt 0:00:10]} Nd5 {
[%emt 0:05:10]} 19. Na4 {[%emt 0:24:53]} N7b6 {[%emt 0:23:13]} 20. Nxc6 {
[%emt 0:02:51]} Qg5 {[%emt 0:01:07]} 21. Kh1 {[%emt 0:05:34]} Bd7 {
[%emt 0:05:13]} 22. Nxb6 {[%emt 0:03:49]} axb6 {[%emt 0:00:47]} 23. Nd4 {
[%emt 0:03:35]} Rec8 {[%emt 0:05:19]} 24. Qd2 {[%emt 0:03:49]} Nc3 {
[%emt 0:03:35]} 25. Rb2 {[%emt 0:00:44]} Nxe2 {[%emt 0:01:21]} 26. Qxe2 {
[%emt 0:00:09]} Ra5 {[%emt 0:03:55]} 27. Rxb6 {[%emt 0:02:28]} Bxd4 {
[%emt 0:01:09]} 28. exd4 {[%emt 0:00:11]} Bb5 {[%emt 0:00:25]} 29. Rxb5 {
[%emt 0:01:35]} Qxb5 {[%emt 0:00:00]} 30. Qxb5 {[%emt 0:00:45]} Rxb5 {
[%emt 0:00:05]} 31. Bd6 {[%emt 0:10:42]} Rc2 {[%emt 0:01:51]} 32. a4 {
[%emt 0:00:15]} Rbb2 {[%emt 0:05:50]} 33. Kg1 {[%emt 0:00:48]} f5 {
[%emt 0:05:38]} 34. Bf4 {[%emt 0:00:12]} Ra2 {[%emt 0:01:00]} 35. g3 {
[%emt 0:01:26]} Rxa4 {[%emt 0:00:46]} 36. Be3 {[%emt 0:00:19]} Rca2 {
[%emt 0:02:02]} 37. h4 {[%emt 0:00:48]} Ra1 {[%emt 0:02:36]} 38. Rxa1 {
[%emt 0:00:10]} Rxa1+ {[%emt 0:00:06]} 39. Kg2 {[%emt 0:00:10]} Kf7 {
[%emt 0:00:00]} 40. Kh2 {[%emt 0:00:51]} Ke6 {[%emt 0:00:24]} 41. Kg2 {
[%emt 0:00:07]} Kd5 {[%emt 0:00:30]} 0-1

[Event "Nova Scotia Closed "]
[Site "Halifax CAN"]
[Date "2019.07.07"]
[Round "4.2"]
[White "Felix, Chris"]
[Black "Mayo, Alvah"]
[Result "1/2-1/2"]
[ECO "B06"]
[WhiteElo "2031"]
[BlackElo "2163"]
[PlyCount "132"]
[EventDate "2019.07.05"]
[EventType "tourn"]
[EventRounds "5"]
[EventCountry "CAN"]
[TimeControl "30/90+45:0"]

1. e4 {[%emt 0:00:02]} g6 {[%emt 0:04:14]} 2. d4 {[%emt 0:00:37]} Bg7 {
[%emt 0:00:00]} 3. Nc3 {[%emt 0:00:19]} c5 {[%emt 0:00:03]} 4. dxc5 {
[%emt 0:01:29]} Bxc3+ {[%emt 0:00:08]} 5. bxc3 {[%emt 0:00:05]} Nf6 {
[%emt 0:00:15]} 6. Bd3 {[%emt 0:08:44]} Qa5 {[%emt 0:00:32]} 7. Ne2 {
[%emt 0:00:33]} Nc6 {[%emt 0:00:00]} 8. Bh6 {[%emt 0:07:29]} Ng4 {
[%emt 0:05:53]} 9. Bf4 {[%emt 0:08:24]} Qxc5 {[%emt 0:01:08]} 10. Bg3 {
[%emt 0:00:14]} d6 {[%emt 0:01:08]} 11. Qd2 {[%emt 0:00:00]} Bd7 {
[%emt 0:07:09]} 12. f3 {[%emt 0:03:35]} Nf6 {[%emt 0:01:05]} 13. Bf2 {
[%emt 0:00:19]} Qa5 {[%emt 0:00:22]} 14. Bc4 {[%emt 0:05:55]} Rc8 {
[%emt 0:01:37]} 15. Bb3 {[%emt 0:01:30]} b6 {[%emt 0:01:18]} 16. h4 {
[%emt 0:04:33]} Ne5 {[%emt 0:01:43]} 17. Bd4 {[%emt 0:02:47]} Bb5 {
[%emt 0:07:01]} 18. Nf4 {[%emt 0:08:11]} Ned7 {[%emt 0:05:07]} 19. Nd5 {
[%emt 0:05:06]} e5 {[%emt 0:02:00]} 20. c4 {[%emt 0:02:52]} Qxd2+ {
[%emt 0:00:36]} 21. Kxd2 {[%emt 0:00:05]} Nxd5 {[%emt 0:00:26]} 22. cxb5 {
[%emt 0:00:39]} Nc7 {[%emt 0:03:53]} 23. Be3 {[%emt 0:02:23]} Nxb5 {
[%emt 0:00:28]} 24. a4 {[%emt 0:04:05]} Nc7 {[%emt 0:02:00]} 25. a5 {
[%emt 0:01:59]} Nc5 {[%emt 0:00:57]} 26. axb6 {[%emt 0:01:44]} axb6 {
[%emt 0:00:38]} 27. Rhb1 {[%emt 0:03:29]} O-O {[%emt 0:07:36]} 28. Bc4 {
[%emt 0:03:11]} Rb8 {[%emt 0:02:10]} 29. Ra7 {[%emt 0:05:38]} Rfc8 {
[%emt 0:00:00]} 30. h5 {[%emt 0:07:59]} gxh5 {[%emt 0:05:12]} 31. Rh1 {
[%emt 0:02:06]} N7e6 {[%emt 0:00:14]} 32. Rxh5 {[%emt 0:01:12]} Nxe4+ {
[%emt 0:00:56]} 33. Kd3 {[%emt 0:04:26]} N6c5+ {[%emt 0:17:16]} 34. Bxc5 {
[%emt 0:00:09]} Nxc5+ {[%emt 0:00:14]} 35. Ke3 {[%emt 0:00:35]} Rb7 {
[%emt 0:00:24]} 36. Rxb7 {[%emt 0:00:00]} Nxb7 {[%emt 0:00:03]} 37. Bxf7+ {
[%emt 0:00:08]} Kxf7 {[%emt 0:05:16]} 38. Rxh7+ {[%emt 0:00:06]} Ke6 {
[%emt 0:00:10]} 39. Rxb7 {[%emt 0:00:13]} Rc7 {[%emt 0:00:06]} 40. c4 Rxc4 {
[%emt 0:00:00]} 41. Rxb6 {[%emt 0:01:54]} Rc2 {[%emt 0:00:00]} 42. Ra6 {
[%emt 0:00:00]} Rxg2 {[%emt 0:00:00]} 43. Kd3 {[%emt 0:02:09]} Rb2 {
[%emt 0:01:11]} 44. Ke3 {[%emt 0:01:48]} Kd5 {[%emt 0:00:51]} 45. Ra4 {
[%emt 0:02:38]} Kc5 {[%emt 0:00:14]} 46. f4 {[%emt 0:04:59]} Rb3+ {
[%emt 0:00:13]} 47. Kd2 {[%emt 0:00:18]} exf4 {[%emt 0:08:27]} 48. Rxf4 {
[%emt 0:00:09]} d5 {[%emt 0:00:12]} 49. Rh4 {[%emt 0:00:59]} d4 {[%emt 0:00:11]
} 50. Rh8 {[%emt 0:01:28]} Rb5 {[%emt 0:00:56]} 51. Rh5+ {[%emt 0:00:24]} Kc4 {
[%emt 0:00:04]} 52. Rxb5 {[%emt 0:00:14]} Kxb5 {[%emt 0:00:03]} 53. Kd3 {
[%emt 0:00:00]} Kc5 {[%emt 0:00:09]} 54. Kd2 {[%emt 0:00:06]} Kd6 {
[%emt 0:03:33]} 55. Kd3 {[%emt 0:00:09]} Kd5 {[%emt 0:01:31]} 56. Kd2 {
[%emt 0:00:07]} Ke4 {[%emt 0:00:00]} 57. Ke2 {[%emt 0:00:05]} d3+ {
[%emt 0:00:36]} 58. Kd2 {[%emt 0:00:05]} Kd4 {[%emt 0:00:05]} 59. Kd1 {
[%emt 0:00:05]} Ke5 {[%emt 0:01:03]} 60. Kd2 {[%emt 0:00:09]} Ke4 {
[%emt 0:00:08]} 61. Kd1 {[%emt 0:00:06]} Ke3 {[%emt 0:00:34]} 62. Ke1 {
[%emt 0:00:06]} Kf4 {[%emt 0:00:59]} 63. Kd2 {[%emt 0:00:08]} Ke4 {
[%emt 0:00:12]} 64. Kd1 {[%emt 0:00:04]} Ke3 {[%emt 0:00:22]} 65. Ke1 {
[%emt 0:00:00]} d2+ {[%emt 0:00:06]} 66. Kd1 {[%emt 0:00:04]} Kd3 {
[%emt 0:00:04]} 1/2-1/2

[Event "Nova Scotia Closed "]
[Site "Halifax CAN"]
[Date "2019.07.07"]
[Round "4.3"]
[White "Younis, Tallal"]
[Black "Langen, Roger"]
[Result "1-0"]
[ECO "B03"]
[WhiteElo "2154"]
[BlackElo "2125"]
[PlyCount "101"]
[EventDate "2019.07.05"]
[EventType "tourn"]
[EventRounds "5"]
[EventCountry "CAN"]
[TimeControl "30/90+45:0"]

1. e4 {[%emt 0:00:06]} Nf6 {[%emt 0:00:22]} 2. e5 {[%emt 0:00:08]} Nd5 {
[%emt 0:00:05]} 3. c4 {[%emt 0:00:10]} Nb6 {[%emt 0:00:04]} 4. d4 {
[%emt 0:00:11]} d6 {[%emt 0:00:05]} 5. exd6 {[%emt 0:01:33]} cxd6 {
[%emt 0:01:09]} 6. Nc3 {[%emt 0:00:16]} g6 {[%emt 0:01:09]} 7. Be3 {
[%emt 0:00:21]} Bg7 {[%emt 0:00:38]} 8. Rc1 {[%emt 0:00:07]} Nc6 {
[%emt 0:00:56]} 9. b3 {[%emt 0:01:52]} Bf5 {[%emt 0:00:00]} 10. Nf3 {
[%emt 0:06:34]} O-O {[%emt 0:03:33]} 11. Be2 {[%emt 0:00:49]} Re8 {
[%emt 0:05:19]} 12. h3 {[%emt 0:03:48]} a5 {[%emt 0:03:34]} 13. Qd2 {
[%emt 0:04:58]} e5 {[%emt 0:12:40]} 14. d5 {[%emt 0:01:36]} Nb4 {[%emt 0:04:20]
} 15. O-O {[%emt 0:02:52]} Bd7 {[%emt 0:10:24]} 16. Ne4 {[%emt 0:20:14]} Nc8 {
[%emt 0:09:33]} 17. a3 {[%emt 0:20:23]} Na6 {[%emt 0:03:00]} 18. c5 {
[%emt 0:00:00]} Nxc5 {[%emt 0:05:54]} 19. Nxc5 {[%emt 0:04:54]} dxc5 {
[%emt 0:00:10]} 20. Bxc5 {[%emt 0:00:10]} b6 {[%emt 0:01:00]} 21. Be3 {
[%emt 0:00:13]} Nd6 {[%emt 0:00:36]} 22. Rc2 {[%emt 0:01:57]} Bf5 {
[%emt 0:03:11]} 23. Rc6 {[%emt 0:00:00]} Ne4 {[%emt 0:03:19]} 24. Qd1 {
[%emt 0:00:36]} Rb8 {[%emt 0:03:03]} 25. a4 {[%emt 0:02:18]} Bd7 {
[%emt 0:02:46]} 26. Rc1 {[%emt 0:05:09]} Bf8 {[%emt 0:00:00]} 27. Nd2 {
[%emt 0:00:27]} Nxd2 {[%emt 0:02:38]} 28. Qxd2 {[%emt 0:00:38]} Bb4 {
[%emt 0:03:45]} 29. Qa2 {[%emt 0:05:27]} Qe7 {[%emt 0:06:36]} 30. Rfd1 {
[%emt 0:01:10]} Qd6 {[%emt 0:02:25]} 31. Bc4 {[%emt 0:03:14]} f5 {
[%emt 0:08:00]} 32. Bd2 {[%emt 0:05:57]} Ba3 {[%emt 0:09:39]} 33. Ra1 {
[%emt 0:00:32]} Bc5 {[%emt 0:00:08]} 34. Bc3 {[%emt 0:00:10]} Re7 {
[%emt 0:03:00]} 35. Qd2 {[%emt 0:00:47]} f4 {[%emt 0:02:04]} 36. Re1 {
[%emt 0:00:51]} Rf8 {[%emt 0:03:30]} 37. Bd3 {[%emt 0:01:37]} Bf5 {
[%emt 0:05:14]} 38. Be4 {[%emt 0:00:48]} h5 {[%emt 0:00:00]} 39. Rad1 {
[%emt 0:00:49]} Bxe4 {[%emt 0:06:29]} 40. Rxe4 {[%emt 0:00:00]} Rf5 {
[%emt 0:04:05]} 41. Qd3 {[%emt 0:01:41]} f3 {[%emt 0:02:55]} 42. g3 {
[%emt 0:23:51]} Rg5 {[%emt 0:00:27]} 43. Kf1 {[%emt 0:00:13]} Rf7 {
[%emt 0:01:00]} 44. Qb5 {[%emt 0:02:05]} Rd7 {[%emt 0:04:18]} 45. g4 {
[%emt 0:07:51]} hxg4 {[%emt 0:00:11]} 46. hxg4 {[%emt 0:00:07]} Bb4 {
[%emt 0:02:03]} 47. Bxb4 {[%emt 0:00:28]} axb4 {[%emt 0:00:07]} 48. Qd3 {
[%emt 0:00:50]} Rh7 {[%emt 0:01:00]} 49. Qxf3 {[%emt 0:00:14]} Rh4 {
[%emt 0:00:45]} 50. Rc4 {[%emt 0:00:39]} Qd7 {[%emt 0:00:26]} 51. d6 {
[%emt 0:01:30]} 1-0

[Event "Nova Scotia Closed "]
[Site "Halifax CAN"]
[Date "2019.07.07"]
[Round "5.1"]
[White "Gonzalez-Cueto, Jose"]
[Black "Felix, Chris"]
[Result "1/2-1/2"]
[ECO "E63"]
[WhiteElo "2085"]
[BlackElo "2031"]
[PlyCount "62"]
[EventDate "2019.07.05"]
[EventType "tourn"]
[EventRounds "5"]
[EventCountry "CAN"]
[TimeControl "30/90+45:0"]

1. d4 {[%emt 0:00:07]} Nf6 {[%emt 0:00:06]} 2. Nf3 {[%emt 0:00:11]} g6 {
[%emt 0:00:39]} 3. g3 {[%emt 0:00:47]} Bg7 {[%emt 0:00:25]} 4. Bg2 {
[%emt 0:00:11]} d6 {[%emt 0:00:13]} 5. O-O {[%emt 0:01:09]} O-O {[%emt 0:00:10]
} 6. c4 {[%emt 0:00:28]} Nc6 {[%emt 0:01:13]} 7. Nc3 {[%emt 0:01:21]} a6 {
[%emt 0:00:50]} 8. e4 {[%emt 0:12:48]} Bg4 {[%emt 0:02:30]} 9. Be3 {
[%emt 0:02:03]} Nd7 {[%emt 0:00:00]} 10. Qd2 {[%emt 0:05:32]} e5 {
[%emt 0:02:46]} 11. d5 {[%emt 0:03:50]} Bxf3 {[%emt 0:00:30]} 12. Bxf3 {
[%emt 0:00:35]} Nd4 {[%emt 0:00:08]} 13. Bg2 {[%emt 0:01:32]} Rb8 {
[%emt 0:04:03]} 14. f4 {[%emt 0:05:35]} b5 {[%emt 0:04:13]} 15. fxe5 {
[%emt 0:01:52]} dxe5 {[%emt 0:00:24]} 16. Ne2 {[%emt 0:07:45]} c5 {
[%emt 0:09:30]} 17. dxc6 {[%emt 0:06:45]} Nxc6 {[%emt 0:00:30]} 18. Rad1 {
[%emt 0:06:12]} Nf6 {[%emt 0:05:11]} 19. Qd6 {[%emt 0:08:05]} Nd4 {
[%emt 0:04:00]} 20. Qxd8 {[%emt 0:01:51]} Nxe2+ {[%emt 0:01:01]} 21. Kf2 {
[%emt 0:00:11]} Rfxd8 {[%emt 0:01:05]} 22. Rxd8+ {[%emt 0:02:12]} Rxd8 {
[%emt 0:00:06]} 23. Kxe2 {[%emt 0:00:09]} bxc4 {[%emt 0:01:30]} 24. Bd2 {
[%emt 0:01:42]} Nd7 {[%emt 0:04:05]} 25. Rc1 {[%emt 0:01:23]} Nb6 {
[%emt 0:02:29]} 26. Rc2 {[%emt 0:00:00]} Bf8 {[%emt 0:05:49]} 27. Bc3 {
[%emt 0:01:59]} f6 {[%emt 0:00:44]} 28. Bh3 {[%emt 0:01:01]} Kf7 {
[%emt 0:00:26]} 29. Rd2 {[%emt 0:03:53]} Rxd2+ {[%emt 0:00:38]} 30. Kxd2 {
[%emt 0:00:23]} Na4 {[%emt 0:02:00]} 31. Bf1 {[%emt 0:00:47]} Nxc3 {
[%emt 0:00:52]} 1/2-1/2

[Event "Nova Scotia Closed "]
[Site "Halifax CAN"]
[Date "2019.07.07"]
[Round "5.2"]
[White "Younis, Tallal"]
[Black "Charlton, Glenn"]
[Result "1/2-1/2"]
[ECO "B36"]
[WhiteElo "2154"]
[BlackElo "2052"]
[PlyCount "62"]
[EventDate "2019.07.05"]
[EventType "tourn"]
[EventRounds "5"]
[EventCountry "CAN"]
[TimeControl "30/90+45:0"]

1. e4 {[%emt 0:00:01]} c5 {[%emt 0:00:09]} 2. Nf3 {[%emt 0:00:08]} g6 {
[%emt 0:00:00]} 3. d4 {[%emt 0:00:05]} cxd4 {[%emt 0:00:16]} 4. Nxd4 {
[%emt 0:00:06]} Nc6 {[%emt 0:00:21]} 5. c4 {[%emt 0:00:09]} Nf6 {[%emt 0:00:36]
} 6. Nc3 {[%emt 0:00:14]} d6 {[%emt 0:00:11]} 7. Be2 {[%emt 0:11:22]} Nxd4 {
[%emt 0:00:33]} 8. Qxd4 {[%emt 0:00:16]} Bg7 {[%emt 0:00:09]} 9. Bg5 {
[%emt 0:06:17]} O-O {[%emt 0:00:19]} 10. Qd2 {[%emt 0:00:46]} a5 {
[%emt 0:04:22]} 11. O-O {[%emt 0:01:42]} a4 {[%emt 0:00:41]} 12. Rab1 {
[%emt 0:02:27]} Qa5 {[%emt 0:02:12]} 13. Rfc1 {[%emt 0:00:34]} Be6 {
[%emt 0:02:59]} 14. f3 {[%emt 0:03:18]} Rfc8 {[%emt 0:00:00]} 15. Nd5 {
[%emt 0:32:01]} Qxd2 {[%emt 0:00:41]} 16. Nxf6+ {[%emt 0:01:10]} Bxf6 {
[%emt 0:01:08]} 17. Bxd2 {[%emt 0:00:14]} b5 {[%emt 0:35:29]} 18. cxb5 {
[%emt 0:26:33]} Rxc1+ {[%emt 0:02:17]} 19. Rxc1 {[%emt 0:01:41]} Bxb2 {
[%emt 0:00:00]} 20. Rc2 {[%emt 0:01:16]} a3 {[%emt 0:00:29]} 21. Bc3 {
[%emt 0:02:16]} Bxc3 {[%emt 0:10:00]} 22. Rxc3 {[%emt 0:00:17]} Bxa2 {
[%emt 0:00:09]} 23. b6 {[%emt 0:00:33]} Bd5 {[%emt 0:00:43]} 24. Rc1 {
[%emt 0:07:48]} a2 {[%emt 0:04:00]} 25. Ra1 {[%emt 0:00:02]} Bc6 {
[%emt 0:10:37]} 26. Bc4 {[%emt 0:00:24]} Rb8 {[%emt 0:00:12]} 27. Rxa2 {
[%emt 0:00:20]} Rxb6 {[%emt 0:00:10]} 28. Kf2 {[%emt 0:00:21]} Kg7 {
[%emt 0:02:34]} 29. Rd2 {[%emt 0:00:14]} Rb4 {[%emt 0:02:00]} 30. Ba2 {
[%emt 0:00:33]} Bb5 {[%emt 0:00:57]} 31. Ke3 {[%emt 0:01:08]} Kf6 {
[%emt 0:00:46]} 1/2-1/2

[Event "Nova Scotia Closed "]
[Site "Halifax CAN"]
[Date "2019.07.07"]
[Round "5.3"]
[White "Langen, Roger"]
[Black "Mayo, Alvah"]
[Result "1/2-1/2"]
[ECO "B06"]
[WhiteElo "2125"]
[BlackElo "2163"]
[PlyCount "51"]
[EventDate "2019.07.05"]
[EventType "tourn"]
[EventRounds "5"]
[EventCountry "CAN"]
[TimeControl "30/90+45:0"]

1. e4 {[%emt 0:00:08]} g6 {[%emt 0:02:53]} 2. Bc4 {[%emt 0:00:37]} Nc6 {
[%emt 0:03:42]} 3. d4 {[%emt 0:04:19]} d6 {[%emt 0:01:07]} 4. Nf3 {
[%emt 0:02:44]} Bg7 {[%emt 0:00:33]} 5. h3 {[%emt 0:01:27]} Nf6 {[%emt 0:01:21]
} 6. Qe2 {[%emt 0:01:44]} O-O {[%emt 0:01:04]} 7. e5 {[%emt 0:05:26]} dxe5 {
[%emt 0:00:32]} 8. dxe5 {[%emt 0:00:21]} Nd5 {[%emt 0:00:23]} 9. O-O {
[%emt 0:07:00]} Nb6 {[%emt 0:00:46]} 10. Bb3 {[%emt 0:12:54]} Nd4 {
[%emt 0:05:49]} 11. Nxd4 {[%emt 0:00:00]} Qxd4 {[%emt 0:00:04]} 12. Re1 {
[%emt 0:00:12]} Bd7 {[%emt 0:11:33]} 13. Nc3 {[%emt 0:10:05]} Bc6 {
[%emt 0:01:27]} 14. e6 {[%emt 0:06:45]} f5 {[%emt 0:00:00]} 15. Be3 {
[%emt 0:09:37]} Qh4 {[%emt 0:00:24]} 16. Bc5 {[%emt 0:07:15]} h5 {
[%emt 0:26:02]} 17. Rad1 {[%emt 0:01:09]} Kh7 {[%emt 0:10:12]} 18. f3 {
[%emt 0:01:41]} Bf6 {[%emt 0:01:27]} 19. a3 {[%emt 0:05:04]} Rg8 {
[%emt 0:01:00]} 20. Rd3 {[%emt 0:04:14]} Rad8 {[%emt 0:03:24]} 21. Red1 {
[%emt 0:02:02]} Rd6 {[%emt 0:00:34]} 22. Bf2 {[%emt 0:04:45]} Qf4 {
[%emt 0:00:44]} 23. Be3 {[%emt 0:04:09]} Qg3 {[%emt 0:02:03]} 24. Bf2 {
[%emt 0:00:40]} Qf4 {[%emt 0:00:00]} 25. Be3 {[%emt 0:02:02]} Qg3 {
[%emt 0:01:20]} 26. Bf2 {[%emt 0:01:32]} 1/2-1/2